bitfinex/quotes_ETHUSD_20241204
["timestamp","ask_amount","ask_price","bid_price","bid_amount"]
[1733322808733,0.1,3733.9,3733.8,4.10590586]
[1733322809038,0.1,3733.9,3733.8,4.07913]
[1733322809436,0.1,3733.9,3733.8,4.10590424]
[1733322809648,1.21,3733.9,3733.8,4.10590422]
[1733322809847,1.21,3733.9,3733.8,4.75756042]
[1733322810282,1.21,3733.9,3733.8,5.28176985]
[1733322811339,2.32,3733.9,3733.8,5.28176985]
[1733322812404,2.32,3733.9,3733.8,8.28176985]
[1733322812768,1e-05,3733.9,3733.8,8.28176985]
[1733322813517,0.1,3734.9,3734.7,2.67759]
[1733322813805,0.1,3734.9,3734.0,0.02676882]
[1733322814021,0.1,3734.9,3734.3,2.67787]
[1733322814303,0.1,3734.9,3733.9,3.0]
[1733322814304,0.1,3734.9,3734.2,2.67792]
[1733322814562,1.2692839,3734.8,3734.2,2.67792]
[1733322815163,1.2692839,3734.8,3733.8,5.28171985]
[1733322815164,1.2942,3734.7,3733.0,1.4126]
[1733322815465,2.67774,3734.5,3733.2,2.67866]
[1733322815629,1.56054839,3734.7,3733.0,1.4126]
[1733322815817,2.92650278,3734.6,3733.5,0.53483642]
[1733322816009,2.67766,3734.6,3733.5,0.53483642]
[1733322816199,1.3108,3734.6,3733.5,0.3240173]
[1733322816514,2.67818,3733.9,3732.6,2.67903]
[1733322816711,1.3108,3733.8,3732.4,2.67923]
[1733322816931,2.67831,3733.7,3732.2,1.3068]
[1733322817136,1.3108,3733.8,3732.7,3.22210776]
[1733322817451,3.98904,3733.8,3732.7,0.54308776]
[1733322817602,2.4208,3733.8,3732.8,0.32222478]
[1733322818115,2.4208,3733.8,3732.9,0.02678226]
[1733322818318,2.4208,3733.8,3733.0,2.67875]
[1733322818854,2.4208,3733.8,3733.1,0.02678141]
[1733322818855,1.11,3733.8,3733.1,0.02678141]
[1733322819255,1.11,3733.8,3733.6,2.67831]
[1733322819408,2.22,3733.8,3733.7,2.70507923]
[1733322819603,2.22,3733.8,3733.7,3.21665492]
[1733322819912,1.2969,3733.7,3733.1,2.67868]
[1733322820115,2.22,3733.8,3733.3,0.52583196]
[1733322820452,2.22,3733.8,3733.7,2.6783]
[1733322820803,2.22,3733.8,3733.4,1.3881]
[1733322821051,2.22,3733.8,3733.7,2.6783]
[1733322821212,3.33,3733.8,3733.7,3.08494]
[1733322821815,3.33,3733.8,3733.7,0.40664]
[1733322822206,3.33,3733.8,3733.7,3.08494]
[1733322822966,4.44,3733.8,3733.7,0.40664]
[1733322823165,4.44,3733.8,3733.7,3.08494]
[1733322824010,4.44,3733.8,3733.7,7.46904]
[1733322824209,1.11,3734.7,3733.8,2.042904]
[1733322824506,1.11,3734.7,3734.6,3.97366]
[1733322825235,1.11,3734.7,3734.6,2.67766]
[1733322825848,1.11,3734.7,3734.6,3.20841012]
[1733322826152,2.22,3734.7,3734.6,3.20841012]
[1733322826459,2.22,3734.7,3734.6,3.92640313]
[1733322827710,3.33,3734.7,3734.6,3.92640313]
[1733322828324,3.33,3734.7,3733.8,0.746904]
[1733322828527,1.415,3734.6,3733.6,0.54746666]
[1733322828912,1.415,3734.6,3733.6,1.96534317]
[1733322829107,3.33,3734.7,3734.6,2.67766]
[1733322831322,4.44,3734.7,3734.6,2.67766]
[1733322832930,5.55,3734.7,3734.6,2.67766]
[1733322833159,5.55,3734.7,3734.6,3.40750383]
[1733322833366,5.1711,3734.7,3734.6,3.40750383]
[1733322834647,6.2811,3734.7,3734.6,3.40750383]
[1733322835005,4.94234,3734.7,3734.6,6.40750383]
[1733322835294,3.60354,3734.7,3734.6,6.40750383]
[1733322836391,4.71354,3734.7,3734.6,3.40750383]
[1733322836683,4.71354,3734.7,3734.3,0.54344826]
[1733322837192,4.71354,3734.7,3734.6,2.67766]
[1733322838044,5.82354,3734.7,3734.6,2.67766]
[1733322839797,6.93354,3734.7,3734.6,2.67766]
[1733322840856,0.23954,3734.7,3734.6,7.23926]
[1733322841090,0.75,3735.3,3735.2,5.67723]
[1733322842352,0.75,3735.3,3735.2,5.70399699]
[1733322842667,0.1,3735.9,3735.2,5.70399699]
[1733322842668,0.1,3735.9,3735.8,5.6768]
[1733322842895,0.1,3735.9,3735.2,2.67723]
[1733322842896,0.1,3735.9,3735.1,4.29888]
[1733322843203,0.1,3735.9,3735.6,2.67688]
[1733322843204,1.21,3735.9,3735.6,2.67688]
[1733322843502,1.6362,3735.8,3735.3,2.6771]
[1733322843666,1.6362,3735.8,3735.7,0.53953029]
[1733322843869,1.21,3735.9,3735.7,0.53953029]
[1733322844067,1.21,3735.9,3735.8,2.6768]
[1733322844454,1.21,3735.9,3735.8,2.70356475]
[1733322844619,1.21,3735.9,3735.8,2.6768]
[1733322844898,2.32,3735.9,3735.8,3.41718903]
[1733322846474,3.43,3735.9,3735.8,3.44395253]
[1733322846774,3.43,3735.9,3735.8,3.41718903]
[1733322847387,1.59,3736.7,3735.8,0.74038903]
[1733322847588,0.1,3736.9,3736.8,2.67608]
[1733322848127,1.21,3736.9,3736.8,7.25813573]
[1733322848328,1.21,3736.9,3736.8,7.23138]
[1733322849776,2.32,3736.9,3736.8,6.2238205]
[1733322850127,2.32,3736.9,3736.8,3.65090512]
[1733322850283,2.32,3736.9,3736.8,4.43685763]
[1733322850482,2.32,3736.9,3736.8,7.46361269]
[1733322850814,0.005,3737.6,3737.5,2.67558]
[1733322851023,0.005,3737.6,3737.5,5.67558]
[1733322851415,1.115,3737.6,3737.5,5.67558]
[1733322851615,1.115,3737.6,3737.5,6.10128262]
[1733322851781,1.115,3737.6,3737.5,7.62688262]
[1733322853100,2.225,3737.6,3737.5,7.62688262]
[1733322853422,1.5881,3739.0,3737.8,2.67537]
[1733322853586,1.5881,3739.0,3737.8,5.67537]
[1733322853777,1.5881,3739.0,3737.8,6.70559526]
[1733322853978,1.5881,3739.0,3737.8,3.70559526]
[1733322854453,1.6322,3738.2,3737.8,4.24951834]
[1733322854734,1.6322,3738.2,3737.8,3.21929308]
[1733322854883,1.21,3737.9,3737.8,0.54392308]
[1733322855080,1.21,3737.9,3737.4,2.67562]
[1733322855318,1.21,3737.9,3737.2,2.67577]
[1733322855627,1.21,3737.9,3737.4,2.67564]
[1733322855923,1.21,3737.9,3737.4,0.267564]
[1733322856224,1.21,3737.9,3737.5,2.67558]
[1733322856423,1.21,3737.9,3737.4,0.267564]
[1733322856424,1.21,3737.9,3737.8,2.67537]
[1733322856584,2.32,3737.9,3737.8,2.67537]
[1733322856783,2.32,3737.9,3737.7,0.5316646]
[1733322857330,2.32,3737.9,3737.7,3.2071046]
[1733322857494,2.32,3737.9,3737.8,2.67537]
[1733322858323,3.43,3737.9,3737.7,3.2070946]
[1733322858635,3.43,3737.9,3737.2,5.67575]
[1733322858636,1.4969,3737.8,3736.8,0.78595251]
[1733322858938,1.4969,3737.7,3736.7,0.53625674]
[1733322859432,1.4969,3737.7,3736.8,0.0267541]
[1733322859637,1.4969,3737.7,3737.0,2.67588]
[1733322859838,2.6069,3737.7,3736.7,2.11975674]
[1733322859995,2.6069,3737.7,3737.3,2.67572]
[1733322860195,2.6069,3737.7,3737.3,0.267572]
[1733322860420,2.6069,3737.7,3736.7,3.21240674]
[1733322860623,2.6069,3737.7,3736.7,0.53625674]
[1733322861088,2.6069,3737.7,3736.9,2.676]
[1733322861541,1.6122,3737.6,3736.7,0.53625674]
[1733322861744,1.6122,3737.4,3736.7,0.53625674]
[1733322861945,0.01892353,3737.6,3735.9,2.67667]
[1733322861946,1.6122,3737.0,3735.9,2.67667]
[1733322862240,1.6122,3737.0,3736.1,0.54187732]
[1733322862393,1.6122,3737.0,3736.1,3.21845732]
[1733322862592,1.6122,3737.0,3736.1,0.54187732]
[1733322862829,1.6122,3737.0,3736.3,2.67641]
[1733322863046,1.6122,3737.0,3736.4,0.32182873]
[1733322863247,2.7222,3737.0,3736.4,0.32182873]
[1733322863541,2.7222,3737.0,3736.1,0.54187732]
[1733322863542,2.7222,3737.0,3736.2,0.02675858]
[1733322863833,2.7222,3737.0,3736.9,2.67601]
[1733322864139,1.11,3737.0,3736.9,2.67601]
[1733322864508,1.11,3737.0,3736.9,5.67601]
[1733322864708,2.22,3737.0,3736.9,5.67601]
[1733322864903,2.22,3737.0,3736.9,6.511233]
[1733322865155,2.22,3737.0,3736.9,7.04104602]
[1733322865362,1e-05,3737.0,3736.9,8.60214602]
[1733322865859,2.22,3737.7,3737.6,2.67551]
[1733322866007,2.22,3737.7,3737.6,5.67551]
[1733322866208,2.22,3737.7,3737.6,3.510628]
[1733322866446,3.33,3737.7,3737.6,2.67551]
[1733322867552,3.33,3737.7,3737.6,3.21972622]
[1733322868158,4.44,3737.7,3737.6,3.21972622]
[1733322868458,4.44,3737.7,3737.6,4.82972622]
[1733322868671,4.44,3737.7,3737.6,6.21972622]
[1733322868824,4.44,3737.7,3737.6,7.30988759]
[1733322869746,5.55,3737.7,3737.6,7.30988759]
[1733322871067,5.55,3737.7,3737.6,4.30988759]
[1733322871564,6.66,3737.7,3737.6,4.30988759]
[1733322873041,7.77,3737.7,3737.6,4.30988759]
[1733322873358,7.77,3737.7,3737.6,3.21972622]
[1733322873566,9.3309,3737.7,3736.9,12.0]
[1733322873727,7.77,3737.7,3737.6,2.67551]
[1733322874644,8.88,3737.7,3737.6,2.67551]
[1733322874843,8.88,3737.7,3737.6,3.373458]
[1733322875166,8.88,3737.7,3737.6,6.373458]
[1733322876260,9.99,3737.7,3737.6,6.373458]
[1733322876462,3.43,3737.9,3737.8,2.67537]
[1733322876642,3.43,3737.9,3737.8,5.67537]
[1733322876967,3.43,3737.9,3737.8,6.62355285]
[1733322877669,0.57233566,3737.9,3737.8,8.22615285]
[1733322877869,1.50307308,3737.9,3737.8,8.96719055]
[1733322878377,1.50307308,3737.9,3737.8,4.00178932]
[1733322878574,1.50307308,3737.9,3737.8,2.67537]
[1733322879470,2.21381929,3737.9,3737.8,7.18677]
[1733322879644,0.005,3738.4,3738.3,2.67501]
[1733322879859,0.005,3738.4,3738.3,5.67501]
[1733322881135,2.68,3738.4,3738.1,0.42300636]
[1733322881377,2.68,3738.4,3737.8,0.53222232]
[1733322881378,2.96392839,3738.4,3737.8,0.53222232]
[1733322881679,2.68,3738.4,3737.8,0.53222232]
[1733322881834,2.68,3738.4,3738.0,2.67517]
[1733322882061,2.68,3738.4,3737.8,0.53222232]
[1733322882506,2.68,3738.4,3738.0,2.67521]
[1733322882679,3.79,3738.4,3738.0,2.67521]
[1733322882879,3.79,3738.4,3737.8,3.20757232]
[1733322883179,3.79,3738.4,3737.8,3.79588155]
[1733322883808,3.79,3738.4,3737.8,1.12053155]
[1733322884106,2.225,3738.4,3738.3,2.67501]
[1733322884307,3.335,3738.4,3737.8,0.53222232]
[1733322885003,3.335,3738.4,3737.9,2.67523]
[1733322885205,3.335,3738.4,3738.0,2.67522]
[1733322885406,1.5834,3738.3,3737.8,0.53222232]
[1733322885763,2.6934,3738.3,3737.8,3.20757232]
[1733322886412,2.6934,3738.3,3737.8,0.53222232]
[1733322886767,2.6934,3738.3,3737.8,3.20758232]
[1733322886997,2.6934,3738.3,3737.9,2.70199969]
[1733322887198,2.6934,3738.3,3737.8,0.85298055]
[1733322887381,2.6934,3738.3,3737.8,3.52834055]
[1733322887709,3.8034,3738.3,3738.0,2.67516]
[1733322888015,3.8034,3738.3,3738.0,2.6752]
[1733322888372,3.8034,3738.3,3737.8,0.85298055]
[1733322888772,3.8034,3738.3,3737.8,3.52834055]
[1733322889066,1.5817,3738.2,3736.9,12.0]
[1733322889304,1.5817,3738.0,3736.9,12.0]
[1733322889516,1.5817,3738.0,3737.0,0.55756618]
[1733322889754,3.33,3738.3,3738.0,2.6752]
[1733322890055,3.33,3738.3,3737.1,4.33557]
[1733322890056,3.33,3738.3,3738.1,2.67509]
[1733322890260,3.33,3738.3,3738.2,2.67508]
[1733322890756,4.44,3738.3,3738.1,0.267509]
[1733322890974,4.44,3738.3,3738.0,2.67522]
[1733322891136,4.44,3738.3,3737.2,3.0]
[1733322891333,4.44,3738.3,3738.0,2.67518]
[1733322891546,4.44,3738.3,3738.0,3.21348427]
[1733322891722,4.44,3738.3,3738.1,2.67514]
[1733322892125,4.44,3738.3,3738.0,0.53830427]
[1733322892675,5.55,3738.3,3738.1,2.67515]
[1733322893162,5.55,3738.3,3738.0,0.53830427]
[1733322893581,5.55,3738.3,3738.2,2.67508]
[1733322893882,5.55,3738.3,3738.2,3.26394743]
[1733322894049,6.66,3738.3,3738.2,3.26394743]
[1733322895236,6.66,3738.3,3738.2,6.26394743]
[1733322895677,7.28413945,3738.3,3738.2,6.26394743]
[1733322896037,5.39747219,3738.3,3738.2,6.26394743]
[1733322896347,3.335,3738.4,3738.3,2.67501]
[1733322896569,3.335,3738.4,3738.3,6.70020592]
[1733322897464,4.445,3738.4,3738.3,6.70020592]
[1733322898572,0.1,3738.9,3738.5,2.67481]
[1733322898788,0.1,3738.9,3738.8,2.67465]
[1733322899139,1.21,3738.9,3738.8,2.67465]
[1733322899453,1.21,3738.9,3738.8,3.209596]
[1733322900735,2.32,3738.9,3738.8,3.209596]
[1733322901349,2.32,3738.9,3738.3,1.02519592]
[1733322901554,2.32,3738.9,3738.6,0.53125375]
[1733322901976,2.32,3738.9,3738.8,2.67465]
[1733322902361,2.32,3738.9,3738.6,0.53125375]
[1733322902362,3.43,3738.9,3738.6,0.53125375]
[1733322902564,1.5325,3738.8,3738.6,0.53125375]
[1733322902755,1.5325,3738.8,3737.8,2.67536]
[1733322903100,1.55142353,3738.8,3737.8,2.942896]
[1733322903261,1.5325,3738.8,3737.9,0.53114674]
[1733322903465,1.5325,3738.8,3738.0,2.6752]
[1733322903659,2.67472,3738.7,3737.2,2.67579]
[1733322904000,1.5596,3738.3,3737.1,2.67584]
[1733322904297,1.5596,3738.3,3737.6,2.67545]
[1733322904599,1.5596,3738.3,3737.5,0.52734787]
[1733322905035,1.5596,3738.3,3737.7,2.67537]
[1733322905705,1.5596,3738.3,3737.5,3.20285787]
[1733322906031,1.5596,3738.3,3737.2,1.467584]
[1733322906032,1.53782353,3738.2,3737.2,1.467584]
[1733322906339,1.5189,3737.9,3736.9,12.0]
[1733322906640,1.5189,3737.7,3736.9,12.0]
[1733322907136,1.5189,3737.7,3737.1,2.67583]
[1733322907432,1.5189,3737.7,3737.0,2.67593]
[1733322907736,1.6206,3737.6,3737.0,4.143523]
[1733322908092,1.6206,3737.6,3737.5,0.53062862]
[1733322908531,1.63952353,3737.6,3736.9,12.0]
[1733322908701,1.6504,3737.0,3736.9,12.0]
[1733322909035,4.32634,3737.0,3736.9,12.0]
[1733322909394,3.78594,3737.0,3736.2,0.27922555]
[1733322909596,1.6178,3736.9,3736.2,0.27922555]
[1733322909903,1.6178,3736.6,3736.2,0.27922555]
[1733322910104,2.67637,3736.5,3736.2,0.27922555]
[1733322910290,1.5321,3736.4,3736.2,0.27922555]
[1733322910492,1.5321,3736.2,3734.8,2.67745]
[1733322910804,1.5321,3736.0,3735.0,0.53137795]
[1733322911012,1.5321,3736.0,3735.1,0.42663326]
[1733322911192,1.11,3736.4,3735.9,2.67673]
[1733322911525,1.11,3736.4,3735.2,2.6772]
[1733322911767,1.11,3736.4,3735.5,2.67696]
[1733322912044,1.11,3736.4,3735.6,0.267696]
[1733322912251,1.11,3736.4,3736.3,2.67644]
[1733322912457,2.22,3736.4,3736.3,2.67644]
[1733322912948,2.22,3736.4,3735.6,2.944596]
[1733322913176,1.67772353,3736.3,3734.6,1.6446]
[1733322913311,1.6588,3736.2,3734.2,0.02677007]
[1733322913506,2.23892353,3736.4,3735.1,2.67724]
[1733322913717,2.23892353,3736.4,3734.3,3.0777324]
[1733322913718,1.6241,3736.2,3734.9,0.53951347]
[1733322914018,1.6241,3736.2,3735.1,2.67729]
[1733322914333,1.6241,3736.1,3735.0,0.32169735]
[1733322914641,1.6241,3736.1,3735.0,2.67734]
[1733322914859,1.6012,3736.0,3735.0,2.67737]
[1733322915031,0.01892353,3735.9,3734.8,2.67747]
[1733322915356,1.6012,3735.8,3734.2,2.67794]
[1733322915559,1.6012,3735.8,3734.4,3.21316526]
[1733322915769,1.6012,3735.8,3735.1,2.67726]
[1733322916079,1.6012,3735.8,3734.5,0.63177402]
[1733322916080,1.6496,3735.6,3734.5,3.30950402]
[1733322916373,1.6496,3735.3,3733.3,2.67857]
[1733322916536,1.5056,3735.1,3734.3,2.67787]
[1733322916735,1.5056,3735.1,3733.2,1.644]
[1733322916736,1.5056,3735.1,3733.9,2.67816]
[1733322916977,1.5056,3734.9,3733.9,2.67812]
[1733322917177,0.01892353,3735.0,3733.7,2.67827]
[1733322917178,1.61552353,3734.8,3733.7,2.67827]
[1733322917378,1.5966,3734.6,3733.6,0.52288875]
[1733322917874,1.61552353,3734.6,3733.7,2.67828]
[1733322918181,1.81552353,3734.6,3733.2,0.53300918]
[1733322918365,1.5224,3734.5,3732.7,2.67897]
[1733322918564,1.54132353,3734.4,3732.4,1.9257624]
[1733322918767,1.54132353,3734.4,3733.1,3.22335893]
[1733322918768,1.5224,3734.4,3733.1,3.22335893]
[1733322919080,1.5224,3734.4,3733.7,2.67828]
[1733322919580,1.5224,3734.4,3733.8,2.67818]
[1733322919581,2.6324,3734.4,3733.8,2.67818]
[1733322920091,2.6324,3734.4,3733.8,2.67822]
[1733322920382,2.6324,3734.4,3734.2,2.67788]
[1733322920544,2.6324,3734.4,3734.3,2.945658]
[1733322920746,2.6324,3734.4,3734.3,2.67787]
[1733322920942,2.6324,3734.4,3733.5,3.0]
[1733322921189,3.7424,3734.4,3734.0,2.67806]
[1733322921694,3.7424,3734.4,3734.1,2.67795]
[1733322921986,3.7424,3734.4,3734.0,2.67808]
[1733322922376,3.7424,3734.4,3733.0,3.0]
[1733322922593,3.7424,3734.4,3734.3,2.67787]
[1733322922747,4.8524,3734.4,3734.3,2.67787]
[1733322922951,3.33,3734.4,3734.3,2.67787]
[1733322924182,3.33,3734.4,3733.2,0.62234589]
[1733322924183,1.5267,3734.3,3733.2,3.30098589]
[1733322924487,1.5267,3734.3,3733.8,2.67823]
[1733322924791,1.5267,3734.3,3733.8,2.67822]
[1733322925093,1.5267,3734.3,3733.3,2.67854]
[1733322925293,1.54562353,3734.3,3733.3,0.32044469]
[1733322925493,1.5267,3734.3,3733.7,2.67827]
[1733322925791,1.5267,3734.3,3733.3,0.32044469]
[1733322925792,1.54562353,3734.3,3733.3,0.32044469]
[1733322926092,1.5316,3734.2,3732.5,0.19257624]
[1733322926388,1.12892353,3734.3,3732.5,0.19257624]
[1733322926389,1.5316,3734.0,3733.3,2.67853]
[1733322926591,1.5508,3733.8,3733.5,2.67843]
[1733322926888,1.5508,3733.8,3733.6,2.67837]
[1733322927092,1.5508,3733.8,3733.7,2.6783]
[1733322927866,1.5508,3733.8,3732.7,0.54387139]
[1733322927867,1.6233,3733.7,3732.7,0.54387139]
[1733322928065,1.6233,3733.7,3733.1,2.67869]
[1733322928268,1.6233,3733.7,3733.2,3.214417]
[1733322928502,1.6233,3733.7,3732.8,2.67895]
[1733322928814,1.6233,3733.7,3733.5,2.67841]
[1733322929012,1.6233,3733.7,3733.0,2.67874]
[1733322929013,1.6233,3733.7,3733.6,2.67838]
[1733322929422,1.11,3734.3,3733.7,2.6783]
[1733322929721,1.11,3734.3,3734.2,2.67794]
[1733322930278,1.11,3734.3,3734.2,3.213543]
[1733322930722,1.11,3734.3,3734.2,2.67794]
[1733322930907,2.7635,3734.3,3734.1,2.67801]
[1733322931087,2.7635,3734.3,3733.3,5.67859]
[1733322931088,3.8735,3734.3,3733.3,3.0]
[1733322931288,3.8735,3734.3,3730.0,56.03166814]
[1733322931289,0.01892353,3734.2,3733.6,2.67837]
[1733322931629,0.01892353,3734.2,3732.8,3.0]
[1733322931630,3.8735,3734.3,3733.9,2.67814]
[1733322931974,3.8735,3734.3,3733.1,2.67867]
[1733322932326,3.8735,3734.3,3733.6,2.67836]
[1733322932327,0.01892353,3734.2,3733.6,2.67836]
[1733322932637,0.01892353,3734.2,3733.7,2.67829]
[1733322932795,1.5477,3734.1,3733.4,2.67845]
[1733322933131,1.5477,3733.9,3732.3,5.35862]
[1733322933278,1.5477,3733.9,3733.0,2.67876]
[1733322933478,1.5477,3733.9,3732.6,2.67908]
[1733322933783,1.5477,3733.8,3732.7,2.67902]
[1733322933994,1.5477,3733.8,3733.0,2.67876]
[1733322934194,1.5477,3733.8,3733.1,2.67872]
[1733322934378,1.5839,3733.6,3732.8,2.67889]
[1733322934574,1.5839,3733.6,3732.8,0.32028284]
[1733322934878,1.11,3734.2,3733.7,2.6783]
[1733322935031,1.11,3734.2,3734.1,2.67802]
[1733322935422,0.88106,3734.3,3734.2,5.67794]
[1733322935638,1e-05,3734.3,3734.2,7.26154]
[1733322935866,1e-05,3734.3,3734.2,8.255496]
[1733322936019,1.11001,3734.3,3734.2,8.255496]
[1733322936218,1.11001,3734.3,3734.2,3.671896]
[1733322936437,1.11001,3734.3,3734.2,5.94694]
[1733322936636,1.11001,3734.3,3734.2,2.67794]
[1733322937927,2.22001,3734.3,3734.2,2.67794]
[1733322938683,2.22001,3734.3,3734.2,5.67794]
[1733322938964,1e-05,3734.3,3734.2,7.18144]
[1733322939156,1e-05,3734.4,3734.3,5.67787]
[1733322939353,1.11,3734.8,3734.7,2.67759]
[1733322940031,2.634,3736.2,3735.6,2.67694]
[1733322940232,2.634,3736.2,3735.7,2.67687]
[1733322941042,1.11,3736.2,3736.1,2.67658]
[1733322941245,1.11,3736.2,3736.1,3.211913]
[1733322941557,3.7575,3736.2,3736.1,2.67658]
[1733322942301,3.7575,3736.2,3735.6,0.54048695]
[1733322942302,3.7575,3736.2,3735.2,4.6503]
[1733322942441,3.7575,3736.2,3735.8,2.67675]
[1733322942643,2.22,3736.2,3734.8,1.6544]
[1733322942849,2.22,3736.2,3736.1,2.67658]
[1733322943159,3.33,3736.2,3736.1,2.944238]
[1733322943362,2.22,3736.4,3736.3,2.67644]
[1733322943880,1.11,3737.0,3736.9,2.67601]
[1733322944726,2.22,3737.0,3736.9,2.67601]
[1733322944930,2.22,3737.0,3736.9,5.67601]
[1733322945278,1e-05,3737.0,3736.9,6.71687805]
[1733322945574,1.6559,3738.2,3737.6,2.67551]
[1733322945931,1.6559,3738.2,3737.6,5.67551]
[1733322946416,2.22,3737.7,3737.6,5.67551]
[1733322946885,1e-05,3737.7,3737.6,5.67551]
[1733322947212,1.11,3738.3,3738.2,2.67508]
[1733322947778,1.11,3738.3,3738.2,5.67508]
[1733322947972,2.22,3738.3,3738.2,7.33218]
[1733322948171,1e-05,3738.3,3738.2,7.33218]
[1733322948380,9.32e-06,3739.7,3739.6,2.67408]
[1733322948673,9.32e-06,3739.7,3739.6,3.208914]
[1733322949271,9.32e-06,3739.7,3739.6,6.208914]
[1733322949696,1.11000932,3739.7,3739.6,6.208914]
[1733322951519,2.22000932,3739.7,3739.6,6.208914]
[1733322952023,2.22000932,3739.7,3739.3,3.53264333]
[1733322952177,2.22000932,3739.7,3739.5,2.67413]
[1733322953097,3.33000932,3739.7,3739.5,2.67413]
[1733322954190,3.33000932,3739.7,3739.6,2.67408]
[1733322954394,3.33000932,3739.7,3739.3,0.53264333]
[1733322955013,3.33000932,3739.7,3739.4,0.02673972]
[1733322955014,4.44000932,3739.7,3739.4,0.02673972]
[1733322955215,4.44000932,3739.7,3739.3,2.67429]
[1733322955590,4.44000932,3739.7,3739.4,2.67421]
[1733322955980,4.44000932,3739.7,3739.6,2.67408]
[1733322956384,4.44000932,3739.7,3739.6,4.29988]
[1733322956595,5.55000932,3739.7,3739.6,4.729868]
[1733322957426,5.55000932,3739.7,3739.6,7.729868]
[1733322957827,0.1,3739.9,3739.6,7.729868]
[1733322958127,1.21,3739.9,3739.8,5.67393]
[1733322959887,2.32,3739.9,3739.8,5.67393]
[1733322960086,2.32,3739.9,3739.8,6.497555]
[1733322960904,2.32,3739.9,3739.8,7.03577112]
[1733322961326,2.32,3739.9,3738.5,1.5139]
[1733322961547,3.43,3739.9,3738.5,1.5139]
[1733322961710,3.43,3739.9,3738.6,0.02673759]
[1733322961905,3.43,3739.9,3738.7,2.67467]
[1733322962162,3.43,3739.9,3739.0,0.53091334]
[1733322962320,3.43,3739.9,3739.8,2.67393]
[1733322962656,3.43,3739.9,3739.8,4.21223]
[1733322962854,3.43,3739.9,3739.8,2.67393]
[1733322963242,4.54,3739.9,3739.8,2.67393]
[1733322963537,4.54,3739.9,3739.6,2.67403]
[1733322963748,4.54,3739.9,3739.1,0.32054333]
[1733322964060,4.54,3739.9,3739.3,2.67429]
[1733322964213,4.54,3739.9,3739.4,0.52957643]
[1733322964415,4.54,3739.9,3739.8,5.67393]
[1733322964891,5.65,3739.9,3739.8,5.67393]
[1733322965528,5.65,3739.9,3739.4,3.52957643]
[1733322965731,5.65,3739.9,3739.8,2.67393]
[1733322966253,5.65,3739.9,3739.5,2.67409]
[1733322966417,1.5423,3739.8,3739.5,3.0]
[1733322966613,6.76,3739.9,3739.7,2.67401]
[1733322966809,6.76,3739.9,3739.8,2.67393]
[1733322967011,6.76,3739.9,3739.8,3.208724]
[1733322967513,6.76,3739.9,3739.8,6.208724]
[1733322968012,7.87,3739.9,3739.8,6.208724]
[1733322969060,7.87,3739.9,3739.8,6.73368013]
[1733322969648,8.98,3739.9,3739.8,6.73368013]
[1733322970377,1.1559499,3739.9,3739.8,8.88788013]
[1733322970518,1.11,3740.1,3740.0,5.67379]
[1733322970862,0.005,3740.3,3740.2,2.67365]
[1733322971016,0.005,3740.3,3740.2,5.67365]
[1733322971233,1.115,3740.3,3740.2,5.67365]
[1733322971538,5.55,3740.8,3740.6,5.67336]
[1733322972960,2.22,3740.7,3740.6,5.67336]
[1733322973341,2.22,3740.7,3740.5,5.67343]
[1733322973342,1.6229,3740.6,3740.5,5.67343]
[1733322973671,2.22,3740.7,3740.6,2.67336]
[1733322974045,2.22,3740.7,3740.4,3.0]
[1733322974249,1.6229,3740.6,3739.9,8.67382]
[1733322974573,1.64182353,3740.6,3739.9,6.0]
[1733322974780,3.70300588,3740.6,3739.9,6.0]
[1733322974984,2.7329,3740.6,3740.0,0.02673618]
[1733322975271,1.11,3740.6,3740.5,2.67343]
[1733322975831,2.22,3740.7,3740.6,2.67336]
[1733322976034,2.22,3740.7,3740.6,4.21826]
[1733322976247,2.87679,3740.8,3740.7,3.0]
[1733322976458,1.54018,3740.8,3740.7,5.67329]
[1733322976879,0.005,3741.0,3740.7,3.02672739]
[1733322977083,1e-05,3741.0,3740.9,2.67315]
[1733322977244,1e-05,3741.0,3740.9,5.67315]
[1733322977446,1.11,3741.2,3741.1,5.67301]
[1733322977447,1e-05,3741.2,3741.1,5.67301]
[1733322977869,1.5953,3742.4,3741.3,2.67286]
[1733322978087,1.11,3743.3,3741.2,3.0]
[1733322978088,1.5318,3742.8,3741.8,2.67251]
[1733322978285,1.5318,3742.8,3741.8,5.67251]
[1733322979388,1.11,3743.3,3742.5,2.67201]
[1733322979698,1.11,3743.3,3742.5,6.506428]
[1733322979847,1.11,3743.3,3742.8,2.67179]
[1733322980047,1.11,3743.3,3742.8,7.30349]
[1733322980398,1.11,3743.3,3743.2,2.67151]
[1733322980577,0.1,3743.9,3743.7,2.67115]
[1733322980900,0.1,3743.9,3743.7,6.205397]
[1733322981390,1.14,3743.8,3743.7,5.67115]
[1733322981550,1.14,3743.8,3743.5,2.67129]
[1733322981897,2.7814,3743.8,3742.8,3.0]
[1733322982191,2.7814,3743.8,3741.5,4.28882]
[1733322982192,0.01892353,3743.7,3741.5,4.28882]
[1733322982389,1.6414,3743.6,3742.6,0.53074215]
[1733322982602,2.69011353,3743.7,3742.6,0.53074215]
[1733322982603,2.18855135,3743.5,3742.6,0.53074215]